Cogmind - Beta 11 @@@ ROGUE MODE // 2022.04.20 @ 01:20:15 Player: aperiodic Result: Destroyed by as-88984 with Assembled Blade Performance ------------- Evolutions (0) 0 Regions Visited (2) 400 Robots Destroyed (16) 80 Value Destroyed (228) 228 Prototype IDs (0) 0 Alien Tech Used (0) 0 Bonus (0) 0 TOTAL SCORE: 708 Bonus ------- None Cogmind --------- Core Integrity 0/250 Matter 248/300 Energy 125/125 System Corruption 0% Temperature Hot (224) Movement Rolling (110) Ox2 Location -10/Mines Parts ------- > --- POWER (1) -------- Light Ion Engine > --- PROPULSION (2) --- Wheel Wheel > --- UTILITY (2) ------ High-capacity Storage Unit > --- WEAPON (2) ------- Light Assault Rifle Bore Cannon > --- INVENTORY (20) --- Light Ion Engine Light Treads Wheel Wheel Propulsion Shielding Propulsion Shielding Light Armor Plating Light Armor Plating Hacking Suite Medium Laser Medium Laser Beam Cannon Light Assault Rifle Mining Laser Peak State ------------ > --- POWER ------------ Light Ion Engine > --- PROPULSION ------- Wheel Wheel > --- UTILITY ---------- High-capacity Storage Unit Light Armor Plating > --- WEAPON ----------- Light Assault Rifle Bore Cannon > --- INVENTORY -------- Light Ion Engine Light Treads Propulsion Shielding Propulsion Shielding Light Armor Plating Light Armor Plating Hacking Suite Medium Laser Medium Laser Beam Cannon Light Assault Rifle Mining Laser [Rating: 12] Favorites ----------- Power Ion Engine Engine Ion Engine Propulsion Light Treads Treads Light Treads Wheel Wheel Utility Seismic Detector Device Seismic Detector Storage High-capacity Storage Unit Protection Light Armor Plating Weapon Light Assault Rifle Energy Gun Medium Laser Ballistic Gun Light Assault Rifle Ballistic Cannon Bore Cannon Special Weapon Mining Laser Build | -11 -10 -10 ------- Run | Scr Mat Min Slots Evolved . | . . . Power . | . . . Propulsion . | . . . Utility . | . . . Weapon . | . . . Parts Attached 20 | 9 1 10 Power 3 | 2 . 1 Engine 3 | 2 . 1 Core . | . . . Reactor . | . . . Propulsion 5 | 2 . 3 Treads 3 | 2 . 1 Leg . | . . . Wheel 2 | . . 2 Hover . | . . . Flight . | . . . Utility 4 | 2 1 1 Device 1 | 1 . . Storage 2 | 1 1 . Processor . | . . . Hackware . | . . . Protection 1 | . . 1 Artifact . | . . . Weapon 8 | 3 . 5 Energy Gun 1 | 1 . . Energy Cannon . | . . . Ballistic Gun 5 | 2 . 3 Ballistic Cannon 1 | . . 1 Launcher . | . . . Special Weapon 1 | . . 1 Impact Weapon . | . . . Slashing Weapon . | . . . Piercing Weapon . | . . . Special Melee Weapon . | . . . Unidentified Prototypes . | . . . Parts Lost 6 | . . 6 Power 1 | . . 1 Propulsion 2 | . . 2 Utility 2 | . . 2 Weapon 1 | . . 1 Highest Loss Streak 2 | . . 2 To Critical Strikes . | . . . Average Slot Usage (%) 97 | . 100 96 Engine 14 | . 14 14 Treads 25 | . 28 23 Device 11 | . 14 9 Storage 14 | . 14 14 Protection 2 | . . 3 Energy Gun 10 | . 14 9 Ballistic Gun 15 | . 14 16 Special Weapon 1 | . . 1 Naked Turns . | . . . Heaviest Build 56 | 14 49 56 Greatest Support 40 | 40 40 40 Greatest Overweight (x) 4 | . 1 4 Average Overweight (x) . | . . 1 Largest Inventory Capacity 20 | 8 20 20 Average Capacity 15 | 7 10 20 Most Carried 14 | 3 14 14 Average Carried 10 | 1 7 12 Final Capacity 20 | 8 20 20 Final Carried 14 | 3 14 14 Class Distribution -------------------- 100% | Mutant Dominant Class ---------------- Mutant | -10/Materials Mutant | -10/Mines Resources | -11 -10 -10 ----------- Run | Scr Mat Min Matter Collected 530 | 295 68 167 Remotely . | . . . Salvage Created 631 | 116 393 122 Parts 26 | 6 20 . Haulers Intercepted 1 | . 1 . Recyclers Shooed 3 | 1 2 . Parts Field Recycled . | . . . Retrieved Matter . | . . . Parts Self-Destructed . | . . . Prevented . | . . . Kills | -11 -10 -10 ------- Run | Scr Mat Min Combat Hostiles Destroyed 15 | . 7 8 Guns 14 | . 7 7 Cannons 1 | . . 1 Classes Destroyed 9 | 3 5 1 Worker 2 | 1 1 . Tunneler 2 | 2 . . Hauler 1 | . 1 . Recycler 2 | 1 1 . Operator 1 | . 1 . Watcher 1 | . 1 . Swarmer 3 | . 3 . Grunt 4 | . 4 . Assembled 8 | . . 8 Best Kill Streak 3 | 2 3 2 Combat Bots Only 3 | . 3 2 Max Kills in Single Turn 1 | 1 1 1 Gunslinging . | . . . Exploded . | . . . Melee . | . . . Uniques/NPCs Destroyed . | . . . Combat | -11 -10 -10 -------- Run | Scr Mat Min Damage Taken 1086 | . 253 833 Core 257 | . 36 221 Absorbed by Shields . | . . . Core Remaining (%) 100 | 100 . . Volleys Fired 118 | 17 46 55 Largest 2 | 2 2 2 Hottest 100 | 70 70 100 Shots Fired 230 | 34 91 105 Gun 217 | 34 91 92 Cannon 10 | . . 10 Launcher . | . . . Special 3 | . . 3 Kinetic 157 | 17 46 94 Thermal 73 | 17 45 11 Explosive . | . . . Electromagnetic . | . . . Robot Hit Streak 16 | 7 16 6 Robot Miss Streak 6 | 3 4 6 Penetration Max . | . . . Secondary Targets 1 | . . 1 Max Gunslinging Chain 1 | . . 1 Shots Hit Robots 123 | 21 54 48 Core Hits 46 | 7 21 18 Critical Kills 1 | . . 1 Critical Parts Destroyed 2 | . . 2 Critical Strikes 8 | 2 3 3 Burn 5 | 2 3 . Destroy 3 | . . 3 Melee Attacks . | . . . Impact . | . . . Slashing . | . . . Piercing . | . . . Sneak Attacks . | . . . Combat Hostiles . | . . . Follow-up Attacks . | . . . Damage Inflicted 1260 | 213 579 468 Guns 1158 | 213 579 366 Cannons 97 | . . 97 Explosions . | . . . Melee . | . . . Ramming 5 | . . 5 Kinetic 735 | 90 219 426 Thermal 520 | 123 360 37 Explosive . | . . . Electromagnetic . | . . . Impact . | . . . Slashing . | . . . Piercing . | . . . Highest Corruption . | . . . Average Corruption . | . . . Corruption Purged . | . . . Corruption Blocked . | . . . Overload Shots . | . . . Overflow Damage . | . . . Projectiles . | . . . Explosions . | . . . Melee . | . . . Knockbacks 1 | . . 1 Impact . | . . . Kinetic 1 | . . 1 Secondary . | . . . Self-Inflicted Damage . | . . . Shots . | . . . Rammed 4 | . 2 2 Targets Rammed 4 | . 2 2 Kicked . | . . . Crushed . | . . . Highest Temperature 244 | 220 180 244 Average Temperature 57 | 92 54 43 Received Heat Transfer 86 | . 66 20 Siege Activations . | . . . Robots Corrupted . | . . . Combat Hostiles . | . . . Parts Fried . | . . . Impact Corruptions . | . . . Robots Melted . | . . . Combat Hostiles . | . . . Parts Melted 4 | 3 1 . Heat Transferred 1924 | 518 1295 111 Parts Sabotaged . | . . . Parts Stolen . | . . . Parts Stripped . | . . . Power Chain Reactions . | . . . Missiles Intercepted . | . . . Alert | -11 -10 -10 ------- Run | Scr Mat Min Peak Influence 189 | 20 189 38 Initial 22 | . 13 22 Average 37 | 8 95 8 Maximum Alert Level . | . . . Low Security (%) 100 | 100 100 100 Level 1 . | . . . Level 2 . | . . . Level 3 . | . . . Level 4 . | . . . Level 5 . | . . . High Security . | . . . Max Security . | . . . Squads Dispatched 3 | . 3 . Investigation . | . . . Extermination . | . . . Reinforcement 3 | . 3 . Assault . | . . . Garrison . | . . . Intercept . | . . . Searches Triggered . | . . . Construction Impeded . | . . . Haulers Reinforced . | . . . Active Scanning Responses . | . . . Cargo Convoy Interrupts . | . . . Stealth | -11 -10 -10 --------- Run | Scr Mat Min Distress Signals 1 | . 1 . Communications Jammed . | . . . Distress Signals . | . . . Times Spotted 27 | . 16 11 Peak Tracking Total 4 | . 4 2 Tactical Retreats 2 | . 1 1 Traps | -11 -10 -10 ------- Run | Scr Mat Min Traps Triggered . | . . . Indirectly . | . . . Trap Hack Attempts . | . . . Triggered . | . . . Disarmed . | . . . Reprogrammed . | . . . Reused . | . . . Traps Extracted . | . . . Installed . | . . . Triggered . | . . . Machines | -11 -10 -10 ---------- Run | Scr Mat Min Machines Disabled . | . . . Max in Single Turn . | . . . Machines Sabotaged . | . . . Garrisons Compromised . | . . . Overloaded Fab Kills . | . . . Hacking | -11 -10 -10 --------- Run | Scr Mat Min Machines Accessed 5 | . 5 . Terminals 5 | . 5 . Fabricators . | . . . Repair Stations . | . . . Recycling Units . | . . . Scanalyzers . | . . . Garrison Access . | . . . Total Hacks 16 | . 16 . Successful 5 | . 5 . Failed 10 | . 10 . Catastrophic . | . . . Database Lockouts 1 | . 1 . Manual 10 | . 10 . Terminals 16 | . 16 . Fabricators . | . . . Repair Stations . | . . . Recycling Units . | . . . Scanalyzers . | . . . Garrison Access . | . . . Terminal Hacks 4 | . 4 . Robot Analysis 1 | . 1 . Terminal Index 1 | . 1 . Locate Traps 1 | . 1 . Hauler Manifests 1 | . 1 . Fabricator Hacks . | . . . Repair Station Hacks . | . . . Recycling Unit Hacks . | . . . Scanalyzer . | . . . Garrison Access Hacks . | . . . Unauthorized Hacks 1 | . 1 . Terminals 1 | . 1 . Operators 1 | . 1 . Fabricators . | . . . Repair Stations . | . . . Recycling Units . | . . . Scanalyzers . | . . . Garrison Access . | . . . Data Cores Recovered . | . . . Used . | . . . Hacking Detections 4 | . 4 . Full Trace Events . | . . . Feedback Events . | . . . Feedback Blocked . | . . . Robot Schematics Acquired . | . . . Robots Built . | . . . Authchips . | . . . Time . | . . . Total Robot Build Rating . | . . . Part Schematics Acquired . | . . . Parts Built . | . . . Authchips . | . . . Time . | . . . Total Part Build Rating . | . . . Parts Repaired . | . . . Time . | . . . Parts Recycled . | . . . Recycled Matter . | . . . Retrieved Matter . | . . . Retrieved Components . | . . . Parts Scanalyzed . | . . . Part Schematics Acquired . | . . . Parts Damaged . | . . . Bothacking | -11 -10 -10 ------------ Run | Scr Mat Min Used RIF Installer . | . . . Robots Hacked . | . . . Non-combat . | . . . Combat . | . . . Robot Hacks Applied . | . . . Relay Couplers Released . | . . . Fabnet Peak Effective % . | . . . Robots Rewired . | . . . Allies Hacked . | . . . Hacks Repelled . | . . . Allies | -11 -10 -10 -------- Run | Scr Mat Min Total Allies . | . . . Largest Group . | . . . Highest-Rated Group . | . . . Highest-Rated Ally . | . . . Total Orders . | . . . Ally Attacks . | . . . Total Damage . | . . . Kills . | . . . Allies Corrupted . | . . . Allies Melted . | . . . Intel | -11 -10 -10 ------- Run | Scr Mat Min Robot Analysis Total 1 | . 1 . Derelict Logs Recovered 1 | . . 1 Drone Launches . | . . . Drone Recoveries . | . . . Exploration | -11 -10 -10 ------------- Run | Scr Mat Min Turns Passed 2663 | 184 909 1570 Spaces Moved 639 | 81 317 241 Core 7 | 7 . . Treads 593 | 74 317 202 Legs . | . . . Wheels 39 | . . 39 Hover . | . . . Flight . | . . . Fastest Speed 50 | 50 160 110 Average Speed 202 | 150 179 251 Slowest Speed 320 | 160 240 320 Overloaded Moves . | . . . Propulsion Burnouts . | . . . Robots Hopped . | . . . Cave-ins Triggered . | . . . Exploration Rate (%) 34 | 6 58 39 Regions Visited 2 Branch Regions 1 Pre-discovered Areas . | . . . Known Exits Taken . | . . . Unknown Exits Taken 2 | 1 1 . Scrap Searched 1 | . . 1 Spaces Dug 3 | . . 3 Terrain Destroyed 9 | . . 9 Melee . | . . . Projectile 9 | . . 9 AOE . | . . . Terrain Rammed . | . . . Walls Destroyed . | . . . Machines Disabled . | . . . Actions | -11 -10 -10 --------- Run | Scr Mat Min Total 1788 | 108 576 1104 Wait 991 | . 199 792 Move 637 | 80 316 241 Hop . | . . . Pick Up 16 | 2 11 3 Fast Attach 9 | 7 . 2 Attach 4 | . . 4 Detach 1 | . . 1 Swap 7 | 2 1 4 Drop 1 | . 1 . Fire 118 | 17 46 55 Melee . | . . . Ram . | . . . Kick . | . . . Crush 4 | . 2 2 Escape Stasis . | . . . Rewire . | . . . Trap . | . . . Miscellaneous . | . . . Route ------- -11/Scrapyard -10/Materials (discovered 2 exits: [*Mat] / [*Min]) -10/Mines History --------- Turn | Location | Event 8 | -11/Scrapyard | Discovered new exit (range 14) 185 | -11/Scrapyard | Entered Materials 301 | -10/Materials | Build established: Mutant 489 | -10/Materials | Discovered new exit (range 8) 891 | -10/Materials | Central database locked down 1031 | -10/Materials | Discovered new exit (range 9) 1094 | -10/Materials | Entered Mines 1099 | -10/Mines | Learned Materials stockpile data 1119 | -10/Mines | Assembled infested the area 1124 | -10/Mines | Assisted by a Guerilla fighting off Assembled 2196 | -10/Mines | Core integrity fell below 50% 2220 | -10/Mines | Core integrity fell below 20% 2664 | -10/Mines | Destroyed by as-88984 with Assembled Blade Last Messages --------------- 02608_ Acquired Wheel. 02612_ Searching scrap... 02612_ Found Beam Cannon. 02612_ Found 29 Matter. 02636_ as-04064 suffers critical hit (Destroy). 02636_ Destroyed Asb. Hover Unit. 02636_ as-04064 knocked back. 02639_ HV Slug penetrates Wall. 02642_ HV Slug penetrates as-36417. 02642_ as-36417 suffers critical hit (Destroy). 02642_ Destroyed Asb. Maul. 02642_ HV Slug penetrates Wall. 02644_ Lgt. Armor Plating destroyed. 02645_ HV Slug penetrates as-04064. 02645_ as-04064 suffers critical hit (Destroy). 02645_ as-04064 destroyed. 02653_ HV Slug penetrates Wall. 02658_ R-06 Scavenger destroyed. 02661_ Knocked back. 02662_ Acquired 23 matter. Map ----- +----------------------------------------------------+ | | | | | | | | | | | | | ???????????????????????????????????????????????? | | ???????????????????????????????????????????????? | | ???????????????????????????????????????????????? | | ???????????????????????????????????????????????? | | ???????????????????????????????????????????????? | | ?????????????????????????? ????????????????????? | | ?????????????????????????? ?#????????????????? | | ?????????????????????????? ????????????????? | | ?????????????????????????? #????????????????? | | ????????????????????????? % ##???????????????? | | ????????????????????????? %=%!????????????????? | | ????????????????????????? !=!!????????????????? | | ????????????????????????? %%%?????????????????? | | ?????????????????????????!%!|??????????????????? | | ?????????????????????????%%=???????????????????? | | ?????????????????????????!*????????????????????? | | ???????????????????????##%#????????????????????? | | ??????????????????????##=%#????????????????????? | | ???????????????????####!!=#????????????????????? | | ???????????????????#!%!@a%#????????????????????? | | ???????????????????#|##=a!######???????????????? | | ????????????????#### ##%*%!|*% !%*%=#??????????? | | ????????????????# ##%]*;### #???????????????? | | ??????????????### ####%% ###???????????????????? | | ??????????????#%|!### %*% ##???????????????????? | | ??????????????##### [##??????????????????? | | ???????????????## # = #??????????????????? | | ?????????????### % !%! #??????????????????? | | ?????????????# #####% | ##??????????????????? | | ?????????????# % ##???????????????????? | | ????????????## ## * %##????????????????????? | | ????????????# *[##????????????????????? | | ????????????# # # %##???????????????????? | | ????????????# ! #???????????????????? | | ????????????# # %###?????????????????? | | ????????????# ## % ###???????????????? | | ???????????## #### ### %* ##??????????????? | | ???######### #?###??## ##?????????????? | | ???# #???????### ##????????????? | | ???# """" ##????????# #????????????? | | ???# ### """" ########## ##????????????? | | ???# #?# """" ##????????????? | | ???# #?## ##???????????? | | ???# #??## ########## ##??????????? | +----------------------------------------------------+ Best States ------------- Heat Dissipation 25 Energy Generation 10 Energy Capacity 250 Matter Stores 300 Matter Capacity 300 Sight Range 16 Terrain Scan Density 10 Armor Coverage 150 Evasion (%) 40 Recoil Reduction 2 Item Schematics ----------------- None Robot Schematics ------------------ None Fabricated ------------ Nothing Alien Tech Used ----------------- None Achievements -------------- None Challenges ------------ None Game ------ Seed MasterLegPlating Manual? 0 Play Time 00:12:38 Cumulative 519.1 hours Start 2022.04.20 @ 01:08:23 End 2022.04.20 @ 01:20:15 Sessions 1 Manual Loads 0 Difficulty Rogue Special Mode None Game No. 167 Rogue 163 Adventurer 4 Explorer 0 Win Type - Total 13 Types 6/2/3/0/0/0/1/1/0 Lore% 82 Gallery% 86 Achievement% 73 Wizard Run 0 Options --------- ASCII 1 Keyboard 0 Movement Arrows Keybinds 0 Fullscreen 1 Font 18/SmallcapsGlow Map View 76x50 Tactical HUD 1 Map Filters NONE Filters NONE Steam 1 RUN: ce9b4295-7c2c-4bb4-9d23-9773189c163d